Cogmind - Beta 15 @@@ ROGUE MODE // 2025.07.25 @ 22:25:00 Player: Florist Result: Destroyed by SA-0D7(R) with Subdweller Laser Performance ------------- Evolutions (0) 0 Regions Visited (2) 400 Robots Destroyed (22) 110 Value Destroyed (379) 379 Prototype IDs (0) 0 Alien Tech Used (0) 0 Bonus (0) 0 TOTAL SCORE: 889 Bonus ------- None Cogmind --------- Core Integrity 0/250 Matter 268/300 Energy 125/125 System Corruption 0% Temperature Cool (6) Movement Rolling (175) Ox5 Location -10/Subcaves Parts ------- > --- POWER (1) -------- Light Ion Engine > --- PROPULSION (2) --- Light Treads Compact Wheel > --- UTILITY (2) ------ Huge Storage Unit Seismic Detector > --- WEAPON (2) ------- Particle Gun Light Cannon > --- INVENTORY (25) --- Light Nuclear Core Light Treads Compact Wheel Compact Wheel Compact Wheel Small Storage Unit Seismic Detector Medium Laser Light Assault Rifle Peak State ------------ > --- POWER ------------ Light Ion Engine > --- PROPULSION ------- Light Treads Compact Wheel > --- UTILITY ---------- Huge Storage Unit Seismic Detector > --- WEAPON ----------- Particle Gun Light Assault Rifle > --- INVENTORY -------- Light Nuclear Core Light Treads Compact Wheel Compact Wheel Compact Wheel Small Storage Unit Seismic Detector Medium Laser Light Cannon [Rating: 9] Favorites ----------- Power Light Ion Engine Engine Light Ion Engine Propulsion Light Treads Treads Light Treads Wheel Compact Wheel Utility Seismic Detector Device Seismic Detector Storage Huge Storage Unit Weapon Medium Laser Energy Gun Medium Laser Ballistic Gun Light Assault Rifle Ballistic Cannon Light Cannon Build | -11 -10 -10 ------- Run | Yrd Mat Sub Slots Evolved . | . . . Power . | . . . Propulsion . | . . . Utility . | . . . Weapon . | . . . Parts Attached 14 | 7 5 2 Power 2 | 1 1 . Engine 2 | 1 1 . Core . | . . . Reactor . | . . . Propulsion 4 | 2 2 . Treads 3 | 2 1 . Leg . | . . . Wheel 1 | . 1 . Hover . | . . . Flight . | . . . Utility 3 | 2 1 . Device 1 | 1 . . Storage 2 | 1 1 . Processor . | . . . Hackware . | . . . Protection . | . . . Artifact . | . . . Weapon 5 | 2 1 2 Energy Gun 3 | 2 . 1 Energy Cannon . | . . . Ballistic Gun 1 | . 1 . Ballistic Cannon 1 | . . 1 Launcher . | . . . Special Weapon . | . . . Impact Weapon . | . . . Slashing Weapon . | . . . Piercing Weapon . | . . . Special Melee Weapon . | . . . Unidentified Prototypes . | . . . Parts Lost 3 | . 3 . Power 1 | . 1 . Propulsion 1 | . 1 . Utility . | . . . Weapon 1 | . 1 . Highest Loss Streak 2 | . 2 . To Critical Strikes . | . . . Average Backups 7 | 3 6 8 Power . | . . . Propulsion 3 | 1 3 4 Utility 1 | . 1 2 Weapon 1 | . 1 2 Tool/Special . | . . . Unused Backups 5 | . . 5 Power 1 | . . 1 Propulsion 3 | . . 3 Utility 1 | . . 1 Weapon . | . . . Tool/Special . | . . . Average Slot Usage (%) 93 | . 88 100 Engine 10 | . 7 14 Treads 19 | . 22 14 Wheel 8 | . 3 14 Device 14 | . 14 14 Storage 14 | . 14 14 Energy Gun 16 | . 18 14 Ballistic Gun 9 | . 5 13 Peak Build Rating 9 | 7 8 9 Average Rating 6 | 5 6 7 On Entrance 5 | . 7 8 Naked Turns . | . . . Heaviest Build 87 | 15 87 87 Greatest Support 40 | 40 40 16 Greatest Overweight (x) 5 | . 5 5 Average Overweight (x) 3 | . 2 5 Largest Inventory Capacity 25 | 8 25 25 Average Capacity 19 | 7 18 25 Most Carried 9 | 5 9 9 Average Carried 7 | 3 6 8 Final Capacity 25 | 8 25 25 Final Carried 9 | 5 9 9 Class Distribution -------------------- 100% | Mutant Dominant Class ---------------- Mutant | -10/Materials Mutant | -10/Subcaves Resources | -11 -10 -10 ----------- Run | Yrd Mat Sub Matter Collected 338 | 270 63 5 Remotely . | . . . Salvage Created 705 | 168 472 65 Parts 38 | 18 17 3 Haulers Intercepted . | . . . Recyclers Shooed 1 | . 1 . Parts Field Recycled . | . . . Retrieved Matter . | . . . Parts Self-Destructed 6 | . . 6 Prevented . | . . . Kills | -11 -10 -10 ------- Run | Yrd Mat Sub Combat Hostiles Destroyed 10 | . 8 2 Guns 9 | . 7 2 Classes Destroyed 7 | 2 4 1 Worker 2 | 1 1 . Tunneler 7 | 7 . . Recycler 2 | . 2 . Watcher 1 | . 1 . Swarmer 3 | . 2 1 Grunt 6 | . 6 . Subdweller 1 | . . 1 Best Kill Streak 5 | 3 5 1 Combat Bots Only 3 | . 3 1 Max Kills in Single Turn 2 | 2 1 1 Gunslinging . | . . . Exploded . | . . . Melee . | . . . Uniques/NPCs Destroyed . | . . . Combat | -11 -10 -10 -------- Run | Yrd Mat Sub Hostile Shots Fired 109 | . 95 14 Missed 21 | . 17 4 Hits 88 | . 78 10 Projectile 88 | . 78 10 Critical Strikes 2 | . 2 . Damage Taken 997 | . 788 209 Core 262 | . 213 49 Absorbed by Shields . | . . . Core Remaining (%) 100 | 100 . . Volleys Fired 68 | 11 49 8 Largest 2 | 2 2 2 Hottest 100 | 100 100 95 Shots Fired 116 | 22 78 16 Gun 113 | 22 78 13 Cannon 3 | . . 3 Launcher . | . . . Special . | . . . Kinetic 26 | . 18 8 Thermal 90 | 22 60 8 Explosive . | . . . Electromagnetic . | . . . Robot Hit Streak 11 | 4 10 11 Robot Miss Streak 3 | 3 3 1 Penetration Max . | . . . Secondary Targets . | . . . Shots Hit Robots 77 | 12 51 14 Core Hits 36 | 8 24 4 Critical Kills . | . . . Critical Parts Destroyed . | . . . Critical Strikes 7 | . 7 . Burn 7 | . 7 . Melee Attacks . | . . . Impact . | . . . Slashing . | . . . Piercing . | . . . Sneak Attacks . | . . . Combat Hostiles . | . . . Follow-up Attacks . | . . . Damage Inflicted 984 | 175 640 169 Guns 952 | 175 640 137 Cannons 32 | . . 32 Explosions . | . . . Melee . | . . . Ramming . | . . . Kinetic 174 | . 101 73 Thermal 810 | 175 539 96 Explosive . | . . . Electromagnetic . | . . . Impact . | . . . Slashing . | . . . Piercing . | . . . Highest Corruption . | . . . Average Corruption . | . . . Corruption Purged . | . . . Corruption Blocked . | . . . Overload Shots . | . . . Overflow Damage . | . . . Projectiles . | . . . Explosions . | . . . Melee . | . . . Knockbacks 1 | . . 1 Impact . | . . . Kinetic 1 | . . 1 Secondary . | . . . Self-Inflicted Damage . | . . . Shots . | . . . Rammed . | . . . Targets Rammed . | . . . Kicked . | . . . Crushed . | . . . Highest Temperature 322 | 160 322 4 Average Temperature 120 | 67 142 3 Received Heat Transfer 366 | . 309 57 Effects 5 | . 5 . Energy Bleed 1 | . 1 . Interference 4 | . 4 . Siege Activations . | . . . Martial Activations . | . . . Shielding Activations . | . . . Robots Disrupted . | . . . Combat Hostiles . | . . . Robots Corrupted . | . . . Combat Hostiles . | . . . Parts Fried . | . . . Impact Corruptions . | . . . Robots Melted 1 | . 1 . Combat Hostiles 1 | . 1 . Parts Melted 6 | 1 4 1 Heat Transferred 2886 | 518 2109 259 Parts Sabotaged . | . . . Parts Stolen . | . . . Parts Stripped . | . . . Power Chain Reactions . | . . . Alert | -11 -10 -10 ------- Run | Yrd Mat Sub Maximum Alert Level . | . . . Low Security (%) 100 | 100 100 . Level 1 . | . . . Level 2 . | . . . Level 3 . | . . . Level 4 . | . . . Level 5 . | . . . High Security . | . . . Max Security . | . . . Peak Influence 55 | 15 55 . Initial 3 | . 3 . Average 11 | 2 14 . Influence Increases 272 | 40 212 20 Destroy 0b10 Robot/C 180 | . 160 20 Destroy 0b10 Robot/NC 60 | 40 20 . Destroy Leader 32 | . 32 . Influence Decreases 272 | 35 217 20 Entered New Map 2 | . 2 . Time Decay 250 | 35 195 20 Lost Part 20 | . 20 . Squads Dispatched 1 | . 1 . Investigation . | . . . Extermination . | . . . Reinforcement 1 | . 1 . Assault . | . . . Garrison . | . . . Intercept . | . . . Searches Triggered . | . . . Construction Impeded . | . . . Haulers Reinforced . | . . . Active Scanning Responses . | . . . Cargo Convoy Interrupts . | . . . Stealth | -11 -10 -10 --------- Run | Yrd Mat Sub Distress Signals . | . . . Communications Jammed . | . . . Distress Signals . | . . . Times Spotted 18 | . 14 4 Peak Tracking Total 6 | . 6 2 Tactical Retreats . | . . . Traps | -11 -10 -10 ------- Run | Yrd Mat Sub Traps Triggered . | . . . Indirectly . | . . . Trap Hack Attempts . | . . . Triggered . | . . . Disarmed . | . . . Reprogrammed . | . . . Reused . | . . . Traps Extracted . | . . . Installed . | . . . Triggered . | . . . Machines | -11 -10 -10 ---------- Run | Yrd Mat Sub Machines Disabled . | . . . Max in Single Turn . | . . . Machines Repaired . | . . . Machines Dismantled . | . . . Machines Sabotaged . | . . . Overloaded Fab Kills . | . . . Hacking | -11 -10 -10 --------- Run | Yrd Mat Sub Machines Accessed 2 | . 2 . Terminals 2 | . 2 . Fabricators . | . . . Repair Stations . | . . . Recycling Units . | . . . Scanalyzers . | . . . Garrison Access . | . . . Total Hacks 6 | . 6 . Successful 1 | . 1 . Failed 5 | . 5 . Catastrophic 1 | . 1 . Database Lockouts . | . . . Manual 6 | . 6 . Terminals 6 | . 6 . Fabricators . | . . . Repair Stations . | . . . Recycling Units . | . . . Scanalyzers . | . . . Garrison Access . | . . . Terminal Hacks . | . . . Fabricator Hacks . | . . . Repair Station Hacks . | . . . Recycling Unit Hacks . | . . . Scanalyzer . | . . . Garrison Access Hacks . | . . . Unauthorized Hacks 1 | . 1 . Terminals 1 | . 1 . Skim 1 | . 1 . Fabricators . | . . . Repair Stations . | . . . Recycling Units . | . . . Scanalyzers . | . . . Garrison Access . | . . . Data Cores Recovered . | . . . Used . | . . . Hacking Detections 2 | . 2 . Full Trace Events . | . . . Feedback Events . | . . . Feedback Blocked . | . . . Robot Schematics Acquired . | . . . Robots Built . | . . . Authchips . | . . . Time . | . . . Total Robot Build Rating . | . . . Part Schematics Acquired . | . . . Parts Built . | . . . Authchips . | . . . Time . | . . . Total Part Build Rating . | . . . Parts Repaired . | . . . Time . | . . . Parts Recycled . | . . . Recycled Matter . | . . . Retrieved Matter . | . . . Retrieved Components . | . . . Parts Scanalyzed . | . . . Part Schematics Acquired . | . . . Parts Damaged . | . . . Bothacking | -11 -10 -10 ------------ Run | Yrd Mat Sub Used RIF Installer . | . . . Robots Hacked . | . . . Non-combat . | . . . Combat . | . . . Robot Hacks Applied . | . . . Relay Couplers Released . | . . . Fabnet Peak Effective % . | . . . Robots Rewired . | . . . Allies Hacked . | . . . Hacks Repelled . | . . . Allies | -11 -10 -10 -------- Run | Yrd Mat Sub Total Allies . | . . . Largest Group . | . . . Highest-Rated Group . | . . . Highest-Rated Ally . | . . . Total Orders . | . . . Ally Attacks . | . . . Total Damage . | . . . Kills . | . . . Allies Corrupted . | . . . Allies Melted . | . . . Intel | -11 -10 -10 ------- Run | Yrd Mat Sub Active Infowar (turns) 1197 | 15 648 534 Seismic 1197 | 15 648 534 Robot Analysis Total . | . . . Derelict Logs Recovered . | . . . Drone Launches . | . . . Drone Recoveries . | . . . Exploration | -11 -10 -10 ------------- Run | Yrd Mat Sub Turns Passed 1494 | 234 726 534 Spaces Moved 639 | 92 280 267 Core 4 | 4 . . Treads 253 | 88 165 . Legs . | . . . Wheels 382 | . 115 267 Hover . | . . . Flight . | . . . Fastest Speed 50 | 50 160 175 Average Speed 184 | 155 203 175 Slowest Speed 480 | 160 480 175 Overloaded Moves . | . . . Propulsion Burnouts . | . . . Robots Hopped . | . . . Potential Cave-ins . | . . . Cave-ins Triggered . | . . . Exploration Rate (%) 22 | 4 40 23 Regions Visited 2 Branch Regions 1 Pre-discovered Areas . | . . . Known Exits Taken . | . . . Unknown Exits Taken 2 | 1 1 . Scrap Searched . | . . . Spaces Dug . | . . . Terrain Destroyed . | . . . Melee . | . . . Projectile . | . . . AOE . | . . . Terrain Rammed . | . . . Walls Destroyed . | . . . Machines Disabled . | . . . Actions | -11 -10 -10 --------- Run | Yrd Mat Sub Total 839 | 158 362 319 Wait 108 | 44 24 40 Move 637 | 91 279 267 Hop . | . . . Pick Up 11 | 5 5 1 Fast Attach 7 | 7 . . Attach 3 | . 3 . Detach . | . . . Swap 4 | . 2 2 Drop 1 | . . 1 Fire 68 | 11 49 8 Melee . | . . . Ram . | . . . Kick . | . . . Crush . | . . . Escape Stasis . | . . . Rewire . | . . . Trap . | . . . Miscellaneous . | . . . Route ------- -11/Scrapyard -10/Materials (discovered 3 exits: [*Mat] / [*Min] / [*Sub]) -10/Subcaves (discovered 1 exit: [*Scr]) History --------- Turn | Location | Event 5 | -11/Scrapyard | Discovered new exit (range 14) 235 | -11/Scrapyard | Entered Materials 317 | -10/Materials | Build established: Mutant 368 | -10/Materials | Discovered new exit (range 16) 368 | -10/Materials | Discovered new exit (range 11) 435 | -10/Materials | Core integrity fell below 50% 457 | -10/Materials | Core integrity fell below 20% 953 | -10/Materials | Discovered new exit (range 5) 961 | -10/Materials | Entered Subcaves 962 | -10/Subcaves | Approached by a straggling Scientist 1039 | -10/Subcaves | A swath of the cavern ceiling suddenly collapsed 1190 | -10/Subcaves | Shifting Twisted Machinery released Sub. Power Source 1209 | -10/Subcaves | Shifting Twisted Machinery released Sub. Beam Cannon 1257 | -10/Subcaves | Scientist uncovered a shortcut to Scraptown 1357 | -10/Subcaves | A swath of the cavern ceiling suddenly collapsed 1495 | -10/Subcaves | Destroyed by SA-0D7(R) with Subdweller Laser Last Messages --------------- A swath of the cavern ceiling suddenly collapses. 48-GAF(c): "I think it's somewhere southwest of here" 48-GAF(c): "I think it's somewhere south of here" 01162_ Disposable Heat Sink melted. 01162_ 60-EHN(R) destroyed. 01164_ Acquired 4 matter. 48-GAF(c): "I think it's somewhere south of here" 01167_ Subatomizers dissect the Sub. Power Source. Sub. Power Source falls loose from the Twisted Machinery. Sub. Beam Cannon falls loose from the Twisted Machinery. 48-GAF(c): "I think it's somewhere south of here" 01257_ 48-GAF(c): "Hah, right again, there it is!" 01264_ 48-GAF(c) exits level. 01326_ S-10 Pest destroyed. 01330_ Lgt. Ion Engine fries itself beyond repair. 01332_ Acquired 1 matter. 01333_ Flight Unit fries itself beyond repair. A swath of the cavern ceiling suddenly collapses. 01377_ Subatomizers dissect the Sub. Optics. 01487_ SA-0D7(R) knocked back. Map ----- +----------------------------------------------------+ | ?????????????????????????????????????????????????? | | ?????????????????????????????????????????????????? | | ?????????????????????????????????????????????????? | | ?????????????????????????????????????????????????? | | ?????????????????????????????????????????????????? | | ?????????????????????????????????????????????????? | | ?????????????????????????????????????????????????? | | ????? ???????????????????????????????????????????? | | ???# ?????????????????????????????????????????? | | ???# ???????#?????????????????????????????????? | | ??? ????? ?????????????????????????????????? | | ???? #?? ?????????????????????????????????? | | ???? ???# #????????????????????????????????? | | ????# ???# ????????????????????????????????? | | ??### #?## ##??????????????????????????????? | | #?# ??# #??????????????????????????????? | | #?# #???# #??????????????????????????????? | | #### ##???# #??????????????????????????????? | | ## ###??# ##?????????????????????????????? | | #???# #####?????????????????????????? | | #????# ########??????????????????? | | #?# ###### # # ## # ??????????? | | #?## % % ??????????? | | #?# RR ??????????? | | ### #### # # ??????????? | | # ##??## ## @#??????????????????????? | | ##????# #############??????????????????????? | | ## ##?????####??????????????????????????????????? | | ####????????????????????????????????????????????? | | ##???????????????????????????????????????????????? | | #????????????????????????????????????????????????? | | ?????????????????????????????????????????????????? | | ?????????????????????????????????????????????????? | | ?????????????????????????????????????????????????? | | ?????????????????????????????????????????????????? | | ?????????????????????????????????????????????????? | | ?????????????????????????????????????????????????? | | ?????????????????????????????????????????????????? | | ?????????????????????????????????????????????????? | | ?????????????????????????????????????????????????? | | ?????????????????????????????????????????????????? | | ?????????????????????????????????????????????????? | | ?????????????????????????????????????????????????? | | ?????????????????????????????????????????????????? | | ?????????????????????????????????????????????????? | | ?????????????????????????????????????????????????? | | | | | | | | | +----------------------------------------------------+ Best States ------------- Heat Dissipation 25 Energy Generation 10 Energy Capacity 250 Matter Stores 300 Matter Capacity 300 Sight Range 16 Terrain Scan Density 10 Evasion (%) 40 Recoil Reduction 2 Item Schematics ----------------- None Robot Schematics ------------------ None Fabricated ------------ Nothing Repaired ---------- Nothing Alien Tech Used ----------------- None Achievements -------------- None Challenges ------------ None Game ------ Seed GravitonBiometalTerrabomb Manual? 0 Play Time 00:07:07 Cumulative 211.0 hours Start 2025.07.25 @ 22:18:49 End 2025.07.25 @ 22:25:00 Sessions 1 Manual Loads 0 Difficulty Rogue Special Mode None Game No. 186 Rogue 186 Adventurer 0 Explorer 0 Win Type - Total 11 Types 5/0/4/2/0/0/0/0/0/0 Lore% 76 Gallery% 71 Achievement% 67 Wizard Run 0 Options --------- Layout 1 ASCII 0 Keyboard 0 Movement Mouse Keybinds 0 Fullscreen 1 Font 32/SmallcapsGlow Map View 77x35 Zoom Use 0% Tactical HUD 1 Map Filters NONE Filters NONE Steam 1 RUN: 53249e61-a864-49c0-ba5b-bec755c02238